[Event "44th Chess Olympiad Women 2022"]
[Site "Chennai"]
[Date "2022.08.09"]
[Round "11.34"]
[White "Madelta Glenda"]
[Black "De Rycke, Tyani"]
[Result "0-1"]
[ECO "B08"]
[WhiteElo "1516"]
[BlackElo "1994"]
[Annotator "TA"]
[PlyCount "80"]
[EventDate "2022.07.29"]
[EventType "team-tourn"]
[EventCountry "IND"]
[SourceTitle "playchess.com"]
[Source "ChessBase"]
[SourceQuality "1"]
[WhiteTeam "Kenya"]
[BlackTeam "Belgium"]
[WhiteTeamCountry "KEN"]
[BlackTeamCountry "BEL"]
[TimeControl "40/5400+30:1800+30"]

{[%evp 11,80,50,52,54,61,74,93,0,0,-125,-122,-118,-125,-120,-120,-134,-133,-128,-126,-225,-192,-188,-192,-195,-188,-184,-158,-162,-164,-158,-83,-77,-86,-191,-204,-203,-185,-187,-152,-212,-212,-205,-206,-210,-191,-241,-237,-224,-188,-183,-184,-220,-186,-179,-158,-173,-172,-441,12,13,26,-287,-260,-260,-224,-207,-215,-29976,-954,-29982,-5181]} 1. d4 {[%emt 0:00:37]} Nf6 {[%emt 0:00:05]} 2. Bf4 {[%emt 0:00:19]} g6 {[%emt 0:00:07]} 3. Nc3 {[%emt 0:00:35]} Bg7 {[%emt 0:00:11]} 4. e4 {[%emt 0:00:51]} d6 {[%emt 0:00:21]} 5. Qd2 {[%emt 0:00:14]} Nbd7 {[%emt 0:00:40]} 6. Nf3 {[%emt 0:00:50]} O-O {[%emt 0:01:13][%cal Oe7e5]} 7. O-O-O {[%emt 0:00:12] B08: Pirc Defence: Classical System.} c5 {[%emt 0:05:57][%cal Bc7c5,Bc5d4][%mdl 32] [#] Hoping for ...cxd4.} 8. Bh6 {[%emt 0:00:28]} Qa5 {[%emt 0:12:22]} 9. h4 {[%emt 0:03:50]} (9. Bxg7 $16 Kxg7 10. e5) 9... cxd4 $11 {[%emt 0:05:03] [#]} 10. Nd5 $146 {[%emt 0:20:08]} (10. Nxd4 $11 {was the only way to keep the balance.} Nxe4 11. Nxe4 Qxd2+ 12. Bxd2 Bxd4 13. h5 (13. Bg5 Bg7 $11)) ({Predecessor:} 10. Nxd4 Nxe4 11. Nxe4 Qxd2+ 12. Bxd2 Bxd4 13. Bg5 Bg7 14. Bb5 h6 15. Bxe7 Re8 16. Bxd7 Bxd7 {½-½ (61) Tum,H (1852)-Ataer,A (1762) Antalya 2020}) 10... Qxd2+ {[%emt 0:11:52]} 11. Bxd2 {[%emt 0:00:44]} Nxd5 {[%emt 0:02:51]} (11... Nxe4 $6 12. Nxe7+ Kh8 13. Be1 $11) 12. exd5 {[%emt 0:00:20]} Nb6 {[%emt 0:00:36]} 13. Bg5 {[%emt 0:11:01][%csl LRd4,LRe7]} Nxd5 {[%emt 0:11:22] And now ...h6 would win.} 14. Nxd4 {[%emt 0:00:41]} h6 {[%emt 0:01:58]} 15. Nb5 {[%emt 0:03:02]} hxg5 {[%emt 0:05:38]} 16. Rxd5 {[%emt 0:00:13]} gxh4 {[%emt 0:00:18]} 17. Nc7 {[%emt 0:02:43]} Rb8 {[%emt 0:00:23] ...e6 is the strong threat.} (17... Be6 18. Ra5 $17) 18. Rxh4 {[%emt 0:00:16]} a6 {[%emt 0:02:20]} 19. Rd3 {[%emt 0:13:08]} Bf6 {[%emt 0:06:04] This bishop pair is nice.} 20. Rb4 {[%emt 0:01:53]} Bf5 {[%emt 0:06:20]} (20... e6 $142 {Strongly threatening ...b5.} 21. Nxa6 Ra8) 21. Rdb3 $17 {[%emt 0:09:25][%cal Of1a6]} Rbc8 {[%emt 0:03:36]} 22. g4 {[%emt 0:03:21]} (22. Rxb7 $17 Be4 23. R7b4) 22... Bxc2 $19 {[%emt 0:03:21]} (22... Rxc7 23. gxf5 gxf5 24. Rxb7 Rxb7 25. Rxb7 $15) 23. Kxc2 {[%emt 0:00:36]} Rxc7+ {[%emt 0:00:05]} 24. Kd2 {[%emt 0:01:11]} Rfc8 {[%emt 0:04:04]} 25. Bd3 {[%emt 0:00:40]} (25. Rxb7 $17 Bg5+ 26. Kd3) 25... b5 {[%emt 0:04:55]} 26. a4 {[%emt 0:07:55]} bxa4 {[%emt 0:01:29]} 27. Rxa4 {[%emt 0:05:38]} Rc1 {[%emt 0:01:26]} 28. Rxa6 {[%emt 0:01:34]} (28. Ra5 $142) 28... Rg1 {[%emt 0:00:15]} 29. Ra4 {[%emt 0:01:34]} Rcc1 {[%emt 0:01:28]} 30. Be2 {[%emt 0:00:43]} Rb1 {[%emt 0:00:21]} 31. Kc2 {[%emt 0:01:55]} Rgc1+ {[%emt 0:02:09]} 32. Kd2 {[%emt 0:01:55]} Rc5 {[%emt 0:03:31]} ({But not} 32... Bxb2 33. Rab4 $16) (32... Rxb2+ 33. Rxb2 Bxb2 34. Ra2 $11) 33. Rab4 {[%emt 0:02:45]} Bh4 {[%emt 0:01:16]} 34. Rf3 $2 {[%emt 0:02:21]} (34. Rb7) 34... Rd5+ $2 {[%emt 0:01:55]} (34... Bg5+ $19 35. Kd3 Re1) 35. Kc2 $11 {[%emt 0:01:19]} Rg1 {[%emt 0:00:29] Threatens to win with ...Rc5+.} 36. Rbf4 $2 {[%emt 0:01:39][%mdl 8192] Loses the game.} (36. Rb8+ $11 {and White is okay.} Kg7 37. Bc4) 36... Bg5 $19 {[%emt 0:00:58]} 37. Rxf7 {[%emt 0:01:07] White wants to mate with Rf8+.} Rd2+ {[%emt 0:00:41]} (37... Rxg4 $2 {is a self mate.} 38. Rf8+ Kh7 39. R3f7+ Kh6 40. Rh8#) 38. Kb3 {[%emt 0:00:12] Threatening mate with Rf8+.} Bf6 {[%emt 0:00:13]} (38... Rxe2 $2 {gets mated.} 39. Rf8+ Kh7 40. R3f7+ Kh6 41. Rh8#) 39. Bb5 $2 {[%emt 0:01:31] [#]} (39. R7xf6 $19 exf6 40. Bc4+ Kg7 41. Kc3) 39... Kxf7 {[%emt 0:00:23]} (39... Rxb2+ $142 40. Ka4 Kxf7 41. Bc4+ e6 42. g5 Rxg5 43. Bb3 Rg4+ 44. Ka3 Rb1 45. Rd3 Ra1+ 46. Ba2 Rf4 47. f3 d5 48. Re3 Rd1 49. Rb3 Rd2 50. Rb1 Be7+ 51. Kb3 Rxf3+ 52. Ka4 Rxa2+ 53. Kb5 g5 54. Kc6 Rc3+ 55. Kb7 g4 56. Kb8 g3 57. Rf1+ Ke8 58. Rb1 g2 59. Rb6 g1=Q 60. Kb7 Kd7 61. Rd6+ Kxd6 62. Kb8 Qb6#) 40. g5 {[%emt 0:00:07]} Rxg5 {[%emt 0:00:08] Weighted Error Value: White=0.80/Black=0.46} (40... Rxb2+ $142 41. Ka4 Ra1+ 42. Ra3 Rxa3+ 43. Kxa3 Rxb5 44. f4 Bc3 45. f5 Rb8 46. Ka4 gxf5 47. g6+ Kxg6 48. Ka3 f4 49. Ka4 f3 50. Ka3 f2 51. Ka2 f1=Q 52. Ka3 Qa6#) 0-1

[Event "44th Chess Olympiad Women 2022"]
[Site "Chennai"]
[Date "2022.08.09"]
[Round "11.35"]
[White "O`Gorman, Alice"]
[Black "Roepke, Sofia"]
[Result "1-0"]
[ECO "D36"]
[WhiteElo "2043"]
[BlackElo "1869"]
[Annotator "NA RC"]
[PlyCount "83"]
[EventDate "2022.07.29"]
[EventType "team-tourn"]
[EventCountry "IND"]
[SourceTitle "playchess.com"]
[Source "ChessBase"]
[SourceQuality "1"]
[WhiteTeam "Ireland"]
[BlackTeam "Uruguay"]
[WhiteTeamCountry "IRL"]
[BlackTeamCountry "URU"]
[TimeControl "40/5400+30:1800+30"]

1. c4 {[%emt 0:00:03]} e6 {[%emt 0:00:15]} 2. Nc3 {[%emt 0:00:13]} d5 {[%emt 0:00:17]} 3. d4 {[%emt 0:00:10]} Nf6 {[%emt 0:00:16]} 4. cxd5 {[%emt 0:00:05]} exd5 {[%emt 0:00:05]} 5. Bg5 {[%emt 0:00:06]} c6 {[%emt 0:00:12]} 6. Qc2 {[%emt 0:00:37]} Be7 {[%emt 0:00:18]} 7. e3 {[%emt 0:00:09]} Nbd7 {[%emt 0:00:15]} 8. Bd3 {[%emt 0:00:07]} O-O {[%emt 0:00:17]} 9. Nf3 {[%emt 0:00:05]} Re8 {[%emt 0:00:12]} 10. O-O {[%emt 0:00:13]} Nf8 {[%emt 0:00:20]} 11. Rab1 {[%emt 0:00:18]} Ng6 {[%emt 0:00:48]} 12. b4 {[%emt 0:01:48]} a6 {[%emt 0:00:32]} 13. a4 {[%emt 0:01:34]} Bd6 {[%emt 0:00:38]} 14. h3 {[%emt 0:05:04]} h6 {[%emt 0:03:46]} 15. Bxf6 {[%emt 0:12:31]} Qxf6 {[%emt 0:00:08]} 16. e4 {[%emt 0:02:29]} Nh4 {[%emt 0:15:07]} 17. Nxh4 {[%emt 0:05:51]} Qxh4 {[%emt 0:00:07]} 18. e5 {[%emt 0:02:10]} Be7 {[%emt 0:14:04]} 19. Ne2 {[%emt 0:01:45]} Bd7 {[%emt 0:03:03]} 20. f4 {[%emt 0:18:42]} Rec8 {[%emt 0:14:55]} 21. f5 {[%emt 0:00:00]} Bg5 {[%emt 0:11:19]} 22. Kh2 {[%emt 0:00:00]} Bd8 {[%emt 0:09:23]} 23. Rf4 {[%emt 0:00:00]} Qe7 {[%emt 0:02:53]} 24. Rg4 {[%emt 0:02:22]} f6 {[%emt 0:01:08]} 25. Nf4 {[%emt 0:00:50]} fxe5 {[%emt 0:08:53]} 26. Ng6 {[%emt 0:00:57]} Qf6 {[%emt 0:00:22]} 27. Nxe5 {[%emt 0:04:45]} Bc7 {[%emt 0:00:14]} 28. Re1 {[%emt 0:00:43]} Re8 {[%emt 0:01:40]} 29. Qc3 {[%emt 0:11:49]} Rf8 {[%emt 0:06:22]} 30. Rg6 {[%emt 0:12:27]} Qd8 {[%emt 0:00:13]} 31. Rf1 {[%emt 0:03:42]} Be8 {[%emt 0:00:17]} 32. Rg3 {[%emt 0:01:56]} Qf6 {[%emt 0:00:49]} 33. Kh1 {[%emt 0:01:38]} Rd8 {[%emt 0:02:00]} 34. Rgf3 {[%emt 0:03:12]} Qd6 {[%emt 0:01:25]} 35. Qd2 {[%emt 0:01:32]} Bh5 {[%emt 0:00:52]} 36. g4 {[%emt 0:01:10]} Be8 {[%emt 0:00:40]} 37. f6 {[%emt 0:02:46]} Rxf6 {[%emt 0:03:28]} 38. Rxf6 {[%emt 0:00:09]} gxf6 {[%emt 0:00:05]} 39. Qxh6 {[%emt 0:00:39]} Qe7 {[%emt 0:01:47]} 40. Rxf6 {[%emt 0:01:11]} Bxe5 {[%emt 0:00:30]} 41. Rf8+ {[%emt 0:31:40]} Qxf8 {[%emt 0:00:46]} 42. Qh7# {[%emt 0:00:00]} 1-0

[Event "44th Chess Olympiad Women 2022"]
[Site "Chennai"]
[Date "2022.08.09"]
[Round "11.35"]
[White "Mirza, Diana"]
[Black "Silvera, Pilar"]
[Result "1-0"]
[ECO "A00"]
[WhiteElo "1898"]
[BlackElo "1436"]
[Annotator "NA RC COMBH"]
[PlyCount "43"]
[EventDate "2022.07.29"]
[EventType "team-tourn"]
[EventCountry "IND"]
[SourceTitle "playchess.com"]
[Source "ChessBase"]
[SourceQuality "1"]
[WhiteTeam "Ireland"]
[BlackTeam "Uruguay"]
[WhiteTeamCountry "IRL"]
[BlackTeamCountry "URU"]
[TimeControl "40/5400+30:1800+30"]

1. b4 {[%emt 0:00:04]} d5 {[%emt 0:00:46]} 2. Bb2 {[%emt 0:00:13]} Qd6 {[%emt 0:05:29]} 3. a3 {[%emt 0:03:35]} e5 {[%emt 0:02:51]} 4. Nf3 {[%emt 0:08:13]} Nd7 {[%emt 0:05:56]} 5. e3 {[%emt 0:02:56]} Ngf6 {[%emt 0:03:40]} 6. c4 {[%emt 0:01:23]} c6 {[%emt 0:00:51]} 7. cxd5 {[%emt 0:00:44]} cxd5 {[%emt 0:00:10]} 8. Qa4 {[%emt 0:15:26]} e4 {[%emt 0:22:58]} 9. Nd4 {[%emt 0:00:29]} Qb6 {[%emt 0:05:46]} 10. Nc3 {[%emt 0:15:12]} Bd6 {[%emt 0:16:33]} 11. Qb3 {[%emt 0:12:30]} O-O {[%emt 0:08:33]} 12. Nxd5 {[%emt 0:01:31]} Nxd5 {[%emt 0:00:26]} 13. Qxd5 {[%emt 0:00:01]} Nf6 {[%emt 0:00:19]} 14. Qb5 {[%emt 0:02:01]} Qd8 {[%emt 0:01:18]} 15. Be2 {[%emt 0:09:15]} Re8 {[%emt 0:07:32]} 16. f4 {[%emt 0:07:26]} exf3 {[%emt 0:04:30]} 17. Nxf3 {[%emt 0:00:44]} Be7 {[%emt 0:09:49]} 18. O-O {[%emt 0:01:28]} Ng4 {[%emt 0:00:47]} 19. Bc4 {[%emt 0:02:38]} Bd6 {[%emt 0:01:12]} 20. Qh5 {[%emt 0:04:35]} Nf6 {[%emt 0:00:31]} 21. Bxf7+ {[%emt 0:01:54]} Kh8 {[%emt 0:00:31]} 22. Bxf6 {[%emt 0:00:20]} 1-0

[Event "44th Chess Olympiad Women 2022"]
[Site "Chennai"]
[Date "2022.08.09"]
[Round "11.35"]
[White "Quevedo, Andreina"]
[Black "Kanyamarala, Trisha"]
[Result "1/2-1/2"]
[ECO "B90"]
[WhiteElo "1841"]
[BlackElo "2270"]
[Annotator "RC"]
[PlyCount "102"]
[EventDate "2022.07.29"]
[EventType "team-tourn"]
[EventCountry "IND"]
[SourceTitle "playchess.com"]
[Source "ChessBase"]
[SourceQuality "1"]
[WhiteTeam "Uruguay"]
[BlackTeam "Ireland"]
[WhiteTeamCountry "URU"]
[BlackTeamCountry "IRL"]
[TimeControl "40/5400+30:1800+30"]

1. e4 {[%emt 0:00:05]} c5 {[%emt 0:00:07]} 2. Nf3 {[%emt 0:00:12]} d6 {[%emt 0:00:08]} 3. d4 {[%emt 0:00:21]} cxd4 {[%emt 0:00:08]} 4. Nxd4 {[%emt 0:00:04]} Nf6 {[%emt 0:00:06]} 5. Nc3 {[%emt 0:00:13]} Nc6 {[%emt 0:00:10]} 6. f3 {[%emt 0:00:59]} e5 {[%emt 0:04:28]} 7. Nb3 {[%emt 0:00:10]} Be6 {[%emt 0:02:51]} 8. Be3 {[%emt 0:02:07]} a6 {[%emt 0:05:12]} 9. Nd5 {[%emt 0:03:52]} Nd7 {[%emt 0:03:58]} 10. Be2 {[%emt 0:03:16]} Be7 {[%emt 0:04:37]} 11. O-O {[%emt 0:00:52]} O-O {[%emt 0:01:52]} 12. Qd2 {[%emt 0:09:41]} Nc5 {[%emt 0:08:09]} 13. Rfd1 {[%emt 0:10:20]} Rc8 {[%emt 0:15:46]} 14. c3 {[%emt 0:08:55]} Re8 {[%emt 0:17:54]} 15. Nxe7+ {[%emt 0:19:50]} Qxe7 {[%emt 0:00:25]} 16. Nxc5 {[%emt 0:00:24]} dxc5 {[%emt 0:00:07]} 17. Qd6 {[%emt 0:00:53]} Qxd6 {[%emt 0:06:57]} 18. Rxd6 {[%emt 0:00:46]} Ne7 {[%emt 0:00:50]} 19. b3 {[%emt 0:01:47]} Rc7 {[%emt 0:05:42]} 20. Rad1 {[%emt 0:01:36]} Nc8 {[%emt 0:05:36]} 21. Rd8 {[%emt 0:01:47]} Kf8 {[%emt 0:00:39]} 22. f4 {[%emt 0:06:10]} exf4 {[%emt 0:01:36]} 23. Bxf4 {[%emt 0:00:19]} Rc6 {[%emt 0:00:40]} 24. Bf3 {[%emt 0:02:46]} h6 {[%emt 0:02:12]} 25. h4 {[%emt 0:06:24]} Ke7 {[%emt 0:03:46]} 26. Rxe8+ {[%emt 0:00:21]} Kxe8 {[%emt 0:00:05]} 27. Kf2 {[%emt 0:01:49]} Nb6 {[%emt 0:02:19]} 28. c4 {[%emt 0:07:59]} Nc8 {[%emt 0:00:38]} 29. Be5 {[%emt 0:03:28]} g6 {[%emt 0:04:55]} 30. Bf6 {[%emt 0:02:01]} Ne7 {[%emt 0:01:30]} 31. Bc3 {[%emt 0:00:56]} b5 {[%emt 0:00:59]} 32. e5 {[%emt 0:03:50]} Rc7 {[%emt 0:00:39]} 33. Ba5 {[%emt 0:00:15]} Rd7 {[%emt 0:00:39]} 34. cxb5 {[%emt 0:00:56]} axb5 {[%emt 0:00:42]} 35. Rxd7 {[%emt 0:01:39]} Kxd7 {[%emt 0:00:21]} 36. Bd2 {[%emt 0:00:49]} h5 {[%emt 0:00:38]} 37. Be2 {[%emt 0:00:05]} Kc6 {[%emt 0:00:33]} 38. Bf3+ {[%emt 0:00:48]} Bd5 {[%emt 0:00:18]} 39. Bg5 {[%emt 0:00:27]} Nf5 {[%emt 0:00:16]} 40. g4 {[%emt 0:00:39]} hxg4 {[%emt 0:01:14]} 41. Bxg4 {[%emt 0:01:40]} Nd4 {[%emt 0:00:26]} 42. Be3 {[%emt 0:04:19]} Nc2 {[%emt 0:01:03]} 43. Bd2 {[%emt 0:00:29]} Be4 {[%emt 0:10:50]} 44. e6 {[%emt 0:06:20]} fxe6 {[%emt 0:09:27]} 45. Bxe6 {[%emt 0:00:26]} Nd4 {[%emt 0:00:48]} 46. Bf7 {[%emt 0:02:07]} b4 {[%emt 0:01:39]} 47. Bxb4 {[%emt 0:13:45]} cxb4 {[%emt 0:00:32]} 48. Ke3 {[%emt 0:00:03]} Bd5 {[%emt 0:06:48]} 49. Bxg6 {[%emt 0:00:38]} Ne6 {[%emt 0:00:50]} 50. h5 {[%emt 0:01:01]} Nf8 {[%emt 0:02:11]} 51. Bd3 {[%emt 0:01:12]} Bf7 {[%emt 0:00:36]} 1/2-1/2

[Event "44th Chess Olympiad Women 2022"]
[Site "Chennai"]
[Date "2022.08.09"]
[Round "11.35"]
[White "Malan, Lucia"]
[Black "Putar, Lara"]
[Result "0-1"]
[ECO "C06"]
[WhiteElo "1741"]
[BlackElo "1969"]
[Annotator "TA"]
[PlyCount "100"]
[EventDate "2022.07.29"]
[EventType "team-tourn"]
[EventCountry "IND"]
[SourceTitle "playchess.com"]
[Source "ChessBase"]
[SourceQuality "1"]
[WhiteTeam "Uruguay"]
[BlackTeam "Ireland"]
[WhiteTeamCountry "URU"]
[BlackTeamCountry "IRL"]
[TimeControl "40/5400+30:1800+30"]

{[%evp 23,100,20,47,0,0,3,25,12,51,52,68,44,90,78,84,90,84,79,113,50,98,86,100,-26,-17,-8,-12,-117,-121,-104,-94,-210,-96,-241,-236,-239,-233,-243,-235,-339,-330,-380,-372,-502,-495,-799,-790,-3843,-3224,-29992,-1385,-1031,-816,-818,-818,-5093,-5120,-4162,-4706,-2280,-2238,-1488,-1450,-8918,-8602,-6378,-6311,-5289,-4918,-29979,-29980,-29980,-29980,-29980,-29978,-29984,-29985,-29990,-29991]} 1. e4 {[%emt 0:00:03]} e6 {[%emt 0:00:04]} 2. d4 {[%emt 0:00:34]} d5 {[%emt 0:00:05]} 3. Nd2 {[%emt 0:00:05]} Nf6 {[%emt 0:00:04]} 4. e5 {[%emt 0:00:05]} Nfd7 {[%emt 0:00:04]} 5. Bd3 {[%emt 0:00:06]} c5 {[%emt 0:00:04]} 6. c3 {[%emt 0:00:05]} Nc6 {[%emt 0:00:04]} 7. Ne2 {[%emt 0:00:10]} cxd4 {[%emt 0:00:14]} 8. cxd4 {[%emt 0:00:07]} f6 {[%emt 0:00:06]} 9. exf6 {[%emt 0:02:21]} Nxf6 {[%emt 0:00:06]} 10. O-O {[%emt 0:00:17]} Bd6 {[%emt 0:00:08]} 11. Nf3 {[%emt 0:00:26]} Qc7 {[%emt 0:00:05]} 12. Bg5 {[%emt 0:01:21]} O-O {[%emt 0:00:11]} 13. Qc2 {[%emt 0:02:12] C06: French Tarrasch: 3...Nf6 4 e5 Nfd7 5 Bd3 main lines.} (13. Rc1 $14 {should be considered.}) 13... h6 {[%emt 0:05:37]} 14. Bh4 {[%emt 0:00:25]} Qb6 {[%emt 0:13:38]} 15. Qd2 {[%emt 0:11:50] [#] White has an edge.} Nb4 $146 {[%emt 0:08:06]} ({Predecessor:} 15... e5 16. dxe5 Nxe5 17. Nxe5 Bxe5 18. Bg3 Qxb2 19. Qxb2 Bxb2 20. Rab1 Ba3 21. Nf4 g5 22. Ng6 Re8 {½-½ (68) Mauro,L (2055)-Quattrocchi,G (2285) Italy 1996}) 16. Bb1 {[%emt 0:05:44]} Bd7 {[%emt 0:13:41]} 17. a3 {[%emt 0:28:19]} Ne4 {[%emt 0:19:37]} (17... Nc6 $14) 18. Qe3 $1 $16 {[%emt 0:11:10]} Nc6 {[%emt 0:15:24]} 19. Bxe4 {[%emt 0:03:47]} dxe4 {[%emt 0:00:09]} 20. Qxe4 {[%emt 0:00:06]} Rae8 {[%emt 0:03:30]} (20... Qxb2 $2 21. Rfb1 Qxa1 22. Rxa1 $18) 21. Rfd1 {[%emt 0:07:55]} (21. Bg3 $16 Ne7 22. Ne5 Bxe5 23. Bxe5) 21... Na5 {[%emt 0:03:25]} (21... Qxb2 $2 22. Rdb1 Qxa1 23. Rxa1 $18) (21... Rf7 $14 {was preferrable.}) 22. b4 $1 {[%emt 0:03:51]} Nc4 {[%emt 0:01:34]} 23. Ne5 {[%emt 0:07:03]} (23. Rdc1 $16 Qb5 24. Qd3) 23... Nxe5 $11 {[%emt 0:01:08][%mdl 64] Remove Defender} 24. dxe5 {[%emt 0:00:07]} Bc6 {[%emt 0:00:34]} 25. Rxd6 {[%emt 0:09:46]} (25. Qd3 $11 Bxe5 26. Rac1) 25... Bxe4 $17 {[%emt 0:00:14]} 26. Rxb6 {[%emt 0:00:05]} axb6 {[%emt 0:00:05]} 27. Nd4 {[%emt 0:01:03] [#]} (27. f3 $17 {was called for.} Bd3 28. Nd4) 27... Bc6 {[%emt 0:03:20]} (27... Bxg2 $1 $19 {[%cal Of8f4][%mdl 512] has better winning chances. Threatens to win with ...Rf4!} 28. Kxg2 Rf4) 28. Rc1 {[%emt 0:02:43] Now White is beyond hope.} (28. f3 $17 {might work better.}) 28... Rf4 $19 {[%emt 0:00:32][%csl LRd4,LRh4]} 29. Nxc6 {[%emt 0:00:49] aiming for Bg3.} Rxh4 {[%emt 0:00:36][%mdl 4096] Endgame KRR-KRN} ({Not} 29... bxc6 30. Bg3 (30. g3 $2 Rf3 $19) 30... Rd4 31. h4) 30. Na7 {[%emt 0:01:32]} Re4 {[%emt 0:00:06]} 31. Nb5 {[%emt 0:00:28]} (31. Nc8 $142 Rxe5 32. Nxb6) 31... Rxe5 {[%emt 0:00:10]} 32. Nd6 {[%emt 0:00:25]} Rd8 {[%emt 0:00:08]} 33. f4 {[%emt 0:00:54]} Re2 {[%emt 0:00:17]} 34. Nxb7 {[%emt 0:00:22]} (34. Rc8 $142 Rxc8 35. Nxc8) 34... Rdd2 {[%emt 0:00:06]} 35. g3 {[%emt 0:01:01]} Rg2+ {[%emt 0:00:06]} 36. Kf1 {[%emt 0:00:18]} Rxh2 {[%emt 0:00:05]} (36... Rdf2+ $142 37. Ke1 Rxh2 38. Nd6 Ra2 39. Rc8+ Kh7 40. Rh8+ Kxh8 41. Nf7+ Kh7 42. Ng5+ hxg5 43. fxg5 Rh1#) 37. Kg1 {[%emt 0:00:13]} Rdg2+ {[%emt 0:00:12]} 38. Kf1 {[%emt 0:00:06]} Rxg3 {[%emt 0:00:07]} 39. Nd8 {[%emt 0:00:58]} Rh1+ {[%emt 0:00:44]} 40. Kf2 {[%emt 0:00:07]} Rxc1 {[%emt 0:00:07]} 41. Kxg3 {[%emt 0:30:04] KR-KN} Rc3+ {[%emt 0:30:16]} 42. Kg4 {[%emt 0:00:26]} Rxa3 {[%emt 0:00:08] Hoping for ...Re3.} 43. Nc6 {[%emt 0:00:51]} Re3 {[%emt 0:01:09]} 44. Ne7+ {[%emt 0:00:00]} Kf7 {[%emt 0:00:00]} 45. Nc8 {[%emt 0:00:00]} Rb3 {[%emt 0:00:00]} 46. Nxb6 {[%emt 0:00:00]} Rxb4 {[%emt 0:00:00] Black mates.} 47. Nd7 {[%emt 0:00:00]} g5 {[%emt 0:00:00]} 48. Ne5+ {[%emt 0:00:00]} Kg7 {[%emt 0:00:00]} 49. Kh5 {[%emt 0:00:00]} Rxf4 {[%emt 0:00:00][%csl Gg5][%cal Rf4h4]} 50. Ng6 {[%emt 0:00:00]} Ra4 {[%emt 0:00:00] Weighted Error Value: White=1.29/Black=0.35} 0-1

[Event "44th Chess Olympiad Women 2022"]
[Site "Chennai"]
[Date "2022.08.09"]
[Round "11.36"]
[White "Azhar, Puteri Munajjah Az-Z"]
[Black "Ferrufino, Michelle"]
[Result "1-0"]
[ECO "A12"]
[WhiteElo "2018"]
[BlackElo "1811"]
[Annotator "NA RC"]
[PlyCount "69"]
[EventDate "2022.07.29"]
[EventType "team-tourn"]
[EventCountry "IND"]
[SourceTitle "playchess.com"]
[Source "ChessBase"]
[SourceQuality "1"]
[WhiteTeam "Malaysia"]
[BlackTeam "Nicaragua"]
[WhiteTeamCountry "MAS"]
[BlackTeamCountry "NCA"]
[TimeControl "40/5400+30:1800+30"]

1. d4 {[%emt 0:00:03]} d5 {[%emt 0:00:13]} 2. c4 {[%emt 0:00:09]} c6 {[%emt 0:00:13]} 3. e3 {[%emt 0:00:11]} Nf6 {[%emt 0:00:14]} 4. Nf3 {[%emt 0:00:11]} Bf5 {[%emt 0:00:37]} 5. Be2 {[%emt 0:01:06]} e6 {[%emt 0:00:22]} 6. O-O {[%emt 0:00:25]} h6 {[%emt 0:00:16]} 7. b3 {[%emt 0:01:27]} Be7 {[%emt 0:00:58]} 8. Bb2 {[%emt 0:00:34]} Nbd7 {[%emt 0:00:18]} 9. Nbd2 {[%emt 0:00:44]} O-O {[%emt 0:05:55]} 10. h3 {[%emt 0:07:19]} a5 {[%emt 0:03:29]} 11. a3 {[%emt 0:01:34]} Bd6 {[%emt 0:05:45]} 12. c5 {[%emt 0:11:07]} Bc7 {[%emt 0:01:20]} 13. b4 {[%emt 0:00:10]} axb4 {[%emt 0:01:20]} 14. axb4 {[%emt 0:00:04]} Qe7 {[%emt 0:01:07]} 15. b5 {[%emt 0:11:41]} e5 {[%emt 0:00:53]} 16. b6 {[%emt 0:00:16]} Rxa1 {[%emt 0:00:26]} 17. Qxa1 {[%emt 0:00:07]} Bb8 {[%emt 0:00:59]} 18. dxe5 {[%emt 0:13:43]} Ne4 {[%emt 0:01:06]} 19. Nb3 {[%emt 0:00:39]} Re8 {[%emt 0:01:22]} 20. Rc1 {[%emt 0:03:54]} Nxe5 {[%emt 0:01:44]} 21. Nxe5 {[%emt 0:11:41]} Bxe5 {[%emt 0:00:25]} 22. Bxe5 {[%emt 0:00:11]} Qxe5 {[%emt 0:00:14]} 23. Qxe5 {[%emt 0:00:52]} Rxe5 {[%emt 0:00:13]} 24. Na5 {[%emt 0:02:50]} Re7 {[%emt 0:02:22]} 25. Ba6 {[%emt 0:02:14]} bxa6 {[%emt 0:12:05]} 26. b7 {[%emt 0:00:15]} Rxb7 {[%emt 0:00:26]} 27. Nxb7 {[%emt 0:00:09]} Nd2 {[%emt 0:03:03]} 28. Na5 {[%emt 0:00:53]} Bd3 {[%emt 0:03:51]} 29. Rd1 {[%emt 0:10:56]} Nc4 {[%emt 0:02:43]} 30. Nxc6 {[%emt 0:00:47]} Be4 {[%emt 0:02:30]} 31. Ne7+ {[%emt 0:00:34]} Kf8 {[%emt 0:00:32]} 32. Nxd5 {[%emt 0:00:21]} a5 {[%emt 0:02:40]} 33. Nb6 {[%emt 0:01:23]} Nb2 {[%emt 0:03:36]} 34. Rd2 {[%emt 0:02:32]} Nd3 {[%emt 0:03:17]} 35. c6 {[%emt 0:00:13]} 1-0